fUSD/lending_fUSD_20251204
["ID","MTS","AMOUNT","RATE_DAILY","PERIOD"]
[396221494,1764831769079,-150.0,0.00039729,120]
[396221495,1764831769143,-572.52,0.00039798,30]
[396221496,1764831769210,-1385.557,0.00039874,56]
[396221497,1764831769275,-600.0,0.0004,30]
[396221498,1764831769336,-4001.0,0.0004,8]
[396221499,1764831769395,-500.0,0.0004,120]
[396221500,1764831769457,-547.93328273,0.0004,120]
[396221501,1764831769512,-229.44337936,0.0004,120]
[396221502,1764831769570,-982.08485567,0.0004,30]
[396221503,1764831769629,-1729.56360543,0.0004,120]
[396221504,1764831769688,-592.08,0.0004,120]
[396221505,1764831769749,-1761.04,0.0004,120]
[396221506,1764831769809,-197.34,0.0004,120]
[396221507,1764831769870,-205.8,0.0004,120]
[396221508,1764831769937,-645.19,0.0004,120]
[396221509,1764831769994,-759.0,0.0004,30]
[396221510,1764831770052,-600.0,0.00040274,30]
[396221511,1764831770113,-157.39699013,0.0004043,7]
[396221512,1764831770174,-856.0,0.00040488,30]
[396221513,1764831770232,-180.17,0.000405,14]
[396221514,1764831770290,-180.33,0.00040548,30]
[396221515,1764831770353,-300.041443,0.0004083,102]
[396221516,1764831770415,-999.999999,0.00040888,120]
[396221517,1764831770479,-856.0,0.00040905,30]
[396221518,1764831770541,-1500.0,0.00040959,7]
[396221519,1764831770605,-1500.0,0.00040959,7]
[396221520,1764831770666,-1500.0,0.00040959,16]
[396221521,1764831770726,-1500.0,0.00040959,7]
[396221522,1764831770782,-1500.0,0.00040959,7]
[396221523,1764831770845,-1500.0,0.00040959,7]
[396221524,1764831770905,-1500.0,0.00040959,7]
[396221525,1764831770968,-1500.0,0.00040959,7]
[396221526,1764831771026,-1500.0,0.00040959,7]
[396221527,1764831771084,-1500.0,0.00040959,7]
[396221528,1764831771147,-1500.0,0.00040959,7]
[396221529,1764831771208,-1500.0,0.00040959,7]
[396221530,1764831771266,-1500.0,0.00040959,7]
[396221531,1764831771325,-1593.49211418,0.00041,120]
[396221532,1764831771388,-595.17730768,0.00041,30]
[396221533,1764831771454,-1000.0,0.00041,120]
[396221534,1764831771519,-152.39046046,0.00041,120]
[396221535,1764831771582,-759.0,0.00041,30]
[396221536,1764831771640,-250.0,0.00041,14]
[396221537,1764831771695,-250.0,0.00041,14]
[396221538,1764831771759,-250.0,0.00041,14]
[396221539,1764831771821,-250.0,0.00041,14]
[396221540,1764831771876,-250.0,0.00041,14]
[396221541,1764831771943,-250.0,0.00041,14]
[396221542,1764831772017,-250.0,0.00041,14]
[396221543,1764831772090,-250.0,0.00041,14]
[396221544,1764831772166,-250.0,0.00041,14]
[396221545,1764831772239,-250.0,0.00041,14]
[396221546,1764831772317,-250.0,0.00041,14]
[396221547,1764831772389,-250.0,0.00041,14]
[396221548,1764831772453,-250.0,0.00041,14]
[396221549,1764831772513,-152.0,0.00041,90]
[396221550,1764831772573,-500.0,0.00041025,30]
[396221551,1764831772632,-500.0,0.00041025,30]
[396221552,1764831772690,-500.0,0.00041025,30]
[396221553,1764831772745,-1500.0,0.00041059,15]
[396221554,1764831772801,-1500.0,0.00041059,7]
[396221555,1764831772859,-300.0,0.00041068,22]
[396221556,1764831773120,-834.12,0.00041095,120]
[396221557,1764831773195,-834.12,0.00041095,120]
[396221558,1764831773261,-834.12,0.00041095,120]
[396221559,1764831773324,-834.12,0.00041095,120]
[396221560,1764831773385,-834.12,0.00041095,120]
[396221561,1764831773442,-834.12,0.00041095,120]
[396221562,1764831773500,-834.12,0.00041095,120]
[396221563,1764831773563,-834.12,0.00041095,120]
[396221564,1764831773631,-834.12,0.00041095,120]
[396221565,1764831773704,-834.12,0.00041095,120]
[396221566,1764831773767,-834.12,0.00041095,120]
[396221567,1764831773834,-834.12,0.00041095,120]
[396221568,1764831773899,-834.12,0.00041095,120]
[396221569,1764831773967,-834.12,0.00041095,120]
[396221570,1764831774033,-834.12,0.00041095,120]
[396221571,1764831774100,-834.12,0.00041095,120]
[396221572,1764831774168,-834.12,0.00041095,120]
[396221573,1764831774233,-834.12,0.00041095,120]
[396221574,1764831774303,-834.12,0.00041095,120]
[396221575,1764831774364,-834.12,0.00041095,120]
[396221576,1764831774423,-834.12,0.00041095,120]
[396221577,1764831774483,-834.12,0.00041095,120]
[396221578,1764831774544,-834.12,0.00041095,120]
[396221579,1764831774603,-834.33441482,0.00041095,120]
[396221580,1764831774661,-500.0,0.00041095,120]
[396221581,1764831774721,-500.0,0.00041095,120]
[396221582,1764831774783,-500.0,0.00041095,120]
[396221583,1764831774851,-500.0,0.00041095,120]
[396221584,1764831774918,-500.0,0.00041095,120]
[396221585,1764831774981,-500.0,0.00041095,120]
[396221586,1764831775042,-500.0,0.00041095,120]
[396221587,1764831775103,-500.0,0.00041095,120]
[396221588,1764831775171,-500.0,0.00041095,120]
[396221589,1764831775240,-500.0,0.00041095,120]
[396221590,1764831775309,-500.0,0.00041095,120]
[396221591,1764831775380,-500.0,0.00041095,120]
[396221592,1764831775450,-341.97265854,0.00041095,120]
[396221593,1764831775513,-500.0,0.00041095,120]
[396221594,1764831775576,-500.0,0.00041095,120]
[396221595,1764831775644,-500.95366161,0.00041095,120]
[396221596,1764831775707,-219.65435933,0.00041095,120]
[396221597,1764831775770,-500.0,0.00041095,120]
[396221598,1764831775830,-500.0,0.00041095,120]
[396221599,1764831775890,-500.0,0.00041095,120]
[396221600,1764831775948,-500.0,0.00041095,120]
[396221601,1764831776004,-500.0,0.00041095,120]
[396221602,1764831776062,-500.0,0.00041095,120]
[396221603,1764831776122,-500.0,0.00041095,120]
[396221604,1764831776186,-500.0,0.00041095,120]
[396221605,1764831776248,-500.0,0.00041095,120]
[396221606,1764831776308,-500.0,0.00041095,120]
[396221607,1764831776367,-500.0,0.00041095,120]
[396221608,1764831776421,-500.0,0.00041095,120]
[396221609,1764831776478,-500.0,0.00041095,120]
[396221610,1764831776531,-500.0,0.00041095,120]
[396221611,1764831776583,-500.0,0.00041095,120]
[396221612,1764831776637,-500.0,0.00041095,120]
[396221613,1764831776693,-500.0,0.00041095,120]
[396221614,1764831776749,-338.55321811,0.00041095,120]
[396221615,1764831776804,-500.0,0.00041095,120]
[396221616,1764831776860,-500.0,0.00041095,120]
[396221617,1764831776919,-500.0,0.00041095,120]
[396221618,1764831776977,-500.0,0.00041095,120]
[396221619,1764831777034,-500.0,0.00041095,120]
[396221620,1764831777096,-500.0,0.00041095,120]
[396221621,1764831777159,-500.0,0.00041095,120]
[396221622,1764831777219,-507.85899931,0.00041095,120]
[396221623,1764831777280,-178.04958827,0.00041095,120]
[396221624,1764831777340,-501.95115875,0.00041095,120]
[396221625,1764831777399,-195.71940425,0.00041095,120]
[396221626,1764831777465,-507.11805915,0.00041095,120]
[396221627,1764831777523,-501.05143433,0.00041095,120]
[396221628,1764831777580,-500.0,0.00041095,120]
[396221629,1764831777637,-500.0,0.00041095,120]
[396221630,1764831777698,-500.0,0.00041095,120]
[396221631,1764831777762,-501.1867808,0.00041095,120]
[396221632,1764831777827,-504.05529865,0.00041095,120]
[396221633,1764831777889,-393.32903576,0.00041095,120]
[396221634,1764831777952,-500.0,0.00041095,120]
[396221635,1764831778015,-500.0,0.00041095,120]
[396221636,1764831778078,-161.59191623,0.00041095,120]
[396221637,1764831778144,-500.0,0.00041095,120]
[396221638,1764831778211,-500.0,0.00041095,120]
[396221639,1764831778274,-500.0,0.00041095,120]
[396221640,1764831778339,-500.0,0.00041095,120]
[396221641,1764831778400,-376.14494474,0.00041095,120]
[396221642,1764831778457,-500.83832645,0.00041095,120]
[396221643,1764831778513,-502.59324232,0.00041095,120]
[396221644,1764831778569,-503.55622893,0.00041095,120]
[396221645,1764831778627,-504.03787419,0.00041095,120]
[396221646,1764831778685,-502.00563154,0.00041095,120]
[396221647,1764831778742,-500.91886833,0.00041095,120]
[396221648,1764831778797,-500.0,0.00041095,120]
[396221649,1764831778983,-500.0,0.00041095,120]
[396221650,1764831779078,-500.0,0.00041095,120]
[396221651,1764831779144,-500.0,0.00041095,120]
[396221652,1764831779212,-502.23450286,0.00041095,120]
[396221653,1764831779276,-500.0,0.00041095,120]
[396221654,1764831779343,-500.0,0.00041095,120]
[396221655,1764831779404,-500.0,0.00041095,120]
[396221656,1764831779465,-500.0,0.00041095,120]
[396221657,1764831779523,-500.0,0.00041095,120]
[396221658,1764831779580,-500.0,0.00041095,120]
[396221659,1764831779638,-500.0,0.00041095,120]
[396221660,1764831779696,-500.0,0.00041095,120]
[396221661,1764831779762,-500.0,0.00041095,120]
[396221662,1764831779829,-501.4705287,0.00041095,120]
[396221663,1764831779885,-500.0,0.00041095,120]
[396221664,1764831779941,-500.0,0.00041095,120]
[396221665,1764831779995,-500.0,0.00041095,120]
[396221666,1764831780054,-514.61873764,0.00041095,120]
[396221667,1764831780116,-500.0,0.00041095,120]
[396221668,1764831780186,-500.0,0.00041095,120]
[396221669,1764831780258,-503.52263552,0.00041095,120]
[396221670,1764831780320,-501.83915259,0.00041095,120]
[396221671,1764831780383,-500.71427564,0.00041095,120]
[396221672,1764831780448,-501.40691925,0.00041095,120]
[396221673,1764831780510,-202.59163877,0.00041095,120]
[396221674,1764831780570,-501.50557629,0.00041095,120]
[396221675,1764831780630,-501.2233741,0.00041095,120]
[396221676,1764831780690,-500.57285317,0.00041095,120]
[396221677,1764831780751,-500.0,0.00041095,120]
[396221678,1764831780811,-500.0,0.00041095,120]
[396221679,1764831780872,-500.0,0.00041095,120]
[396221680,1764831780934,-500.0,0.00041095,120]
[396221681,1764831780994,-617.27342985,0.00041095,120]
[396221682,1764831781055,-500.0,0.00041095,120]
[396221683,1764831781117,-501.72762898,0.00041095,120]
[396221684,1764831781180,-500.0,0.00041095,31]
[396221685,1764831781243,-500.0,0.00041095,31]
[396221686,1764831781307,-500.0,0.00041095,31]
[396221687,1764831781372,-500.0,0.00041095,31]
[396221688,1764831781434,-500.0,0.00041095,120]
[396221689,1764831781494,-500.0,0.00041095,120]
[396221690,1764831781555,-286.35723569,0.00041095,120]
[396221691,1764831781617,-500.0,0.00041095,120]
[396221692,1764831781681,-500.0,0.00041095,120]
[396221693,1764831781745,-500.0,0.00041095,120]
[396221694,1764831781809,-646.50156313,0.00041095,120]
[396221695,1764831781875,-586.23423161,0.00041095,120]
[396221696,1764831781946,-500.0,0.00041095,120]
[396221697,1764831782012,-500.0,0.00041095,120]
[396221698,1764831782080,-647.37906649,0.00041095,120]
[396221699,1764831782143,-500.0,0.00041095,120]
[396221700,1764831782209,-500.0,0.00041095,120]
[396221701,1764831782275,-257.46773016,0.00041095,120]
[396221702,1764831782341,-527.52152385,0.00041095,120]
[396221703,1764831782407,-504.14062269,0.00041095,120]
[396221704,1764831782471,-501.40513939,0.00041095,120]
[396221705,1764831782534,-517.32669416,0.00041095,120]
[396221706,1764831782596,-500.0,0.00041095,120]
[396221707,1764831782663,-512.10603049,0.00041095,120]
[396221708,1764831782729,-504.97100066,0.00041095,120]
[396221709,1764831782793,-526.83013921,0.00041095,120]
[396221710,1764831782857,-559.72603955,0.00041095,120]
[396221711,1764831782920,-503.35070484,0.00041095,120]
[396221712,1764831782986,-500.0,0.00041095,120]
[396221713,1764831783055,-501.48558084,0.00041095,120]
[396221714,1764831783125,-500.0,0.00041095,120]
[396221715,1764831783201,-502.16669694,0.00041095,120]
[396221716,1764831783274,-500.0,0.00041095,120]
[396221717,1764831783349,-500.0,0.00041095,120]
[396221718,1764831783421,-498.42150956,0.00041095,120]
[396221719,1764831783491,-500.0,0.00041095,120]
[396221720,1764831783559,-509.85939226,0.00041095,120]
[396221721,1764831783628,-500.0,0.00041095,120]
[396221722,1764831783694,-500.0,0.00041095,120]
[396221723,1764831783758,-568.08277812,0.00041095,120]
[396221724,1764831783825,-500.0,0.00041095,120]
[396221725,1764831783891,-500.0,0.00041095,120]
[396221726,1764831783956,-382.62628394,0.00041095,120]
[396221727,1764831784020,-500.0,0.00041095,120]
[396221728,1764831784083,-500.0,0.00041095,120]
[396221729,1764831784149,-500.0,0.00041095,120]
[396221730,1764831784216,-514.22480763,0.00041095,120]
[396221731,1764831784280,-627.77223888,0.00041095,120]
[396221732,1764831784348,-500.0,0.00041095,120]
[396221733,1764831784418,-500.0,0.00041095,120]
[396221734,1764831784485,-500.0,0.00041095,120]
[396221735,1764831784558,-500.0,0.00041095,120]
[396221736,1764831784630,-497.81261142,0.00041095,120]
[396221737,1764831784698,-500.0,0.00041095,120]
[396221738,1764831784771,-513.07419835,0.00041095,120]
[396221739,1764831784844,-501.0423409,0.00041095,120]
[396221740,1764831784911,-500.0,0.00041095,120]
[396221741,1764831784977,-500.0,0.00041095,120]
[396221742,1764831785040,-602.62027793,0.00041095,120]
[396221743,1764831785106,-500.0,0.00041095,120]
[396221744,1764831785339,-500.0,0.00041095,120]
[396221745,1764831785407,-500.0,0.00041095,120]
[396221746,1764831785472,-500.0,0.00041095,120]
[396221747,1764831785537,-500.0,0.00041095,120]
[396221748,1764831785604,-549.09501253,0.00041095,120]
[396221749,1764831785674,-246.33124408,0.00041095,120]
[396221750,1764831785740,-500.0,0.00041095,120]
[396221751,1764831785808,-541.30565418,0.00041095,120]
[396221752,1764831785876,-502.35221508,0.00041095,120]
[396221753,1764831785942,-509.10752744,0.00041095,120]
[396221754,1764831786004,-500.0,0.00041095,120]
[396221755,1764831786066,-500.0,0.00041095,120]
[396221756,1764831786128,-507.90271013,0.00041095,120]
[396221757,1764831786192,-506.64879922,0.00041095,120]
[396221758,1764831786253,-527.82396264,0.00041095,120]
[396221759,1764831786315,-622.77444601,0.00041095,120]
[396221760,1764831786384,-500.0,0.00041095,120]
[396221761,1764831786444,-500.0,0.00041095,120]
[396221762,1764831786504,-500.0,0.00041095,120]
[396221763,1764831786563,-500.0,0.00041095,120]
[396221764,1764831786621,-504.76128817,0.00041095,120]
[396221765,1764831786687,-500.0,0.00041095,120]
[396221766,1764831786749,-500.0,0.00041095,120]
[396221767,1764831786807,-506.22845964,0.00041095,120]
[396221768,1764831786869,-500.0,0.00041095,120]
[396221769,1764831786936,-500.0,0.00041095,120]
[396221770,1764831786999,-500.0,0.00041095,120]
[396221771,1764831787062,-500.0,0.00041095,120]
[396221772,1764831787125,-500.0,0.00041095,120]
[396221773,1764831787186,-482.13174466,0.00041095,120]
[396221774,1764831787247,-512.71087841,0.00041095,120]
[396221775,1764831787305,-500.0,0.00041095,120]
[396221776,1764831787367,-500.0,0.00041095,120]
[396221777,1764831787430,-500.0,0.00041095,120]
[396221778,1764831787488,-500.0,0.00041095,120]
[396221779,1764831787550,-500.0,0.00041095,120]
[396221780,1764831787606,-500.0,0.00041095,120]
[396221781,1764831787665,-500.0,0.00041095,120]
[396221782,1764831787726,-500.0,0.00041095,120]
[396221783,1764831787782,-500.0,0.00041095,120]
[396221784,1764831787838,-358.00908271,0.00041095,120]
[396221785,1764831787901,-418.82011245,0.00041095,120]
[396221786,1764831787966,-504.98444568,0.00041095,120]
[396221787,1764831788033,-645.41281,0.00041095,15]
[396221788,1764831788105,-620.54182903,0.00041095,120]
[396221789,1764831788189,-645.41281,0.00041095,15]
[396221790,1764831788260,-515.46231817,0.00041095,120]
[396221791,1764831788324,-645.41281,0.00041095,15]
[396221792,1764831788388,-510.47898836,0.00041095,120]
[396221793,1764831788446,-645.41281,0.00041095,15]
[396221794,1764831788502,-500.0,0.00041095,120]
[396221795,1764831788555,-500.0,0.00041095,120]
[396221796,1764831788609,-174.91161308,0.00041095,120]
[396221797,1764831788666,-516.21890843,0.00041095,120]
[396221798,1764831788726,-500.0,0.00041095,120]
[396221799,1764831788799,-500.0,0.00041095,120]
[396221800,1764831788855,-500.0,0.00041095,120]
[396221801,1764831788910,-500.0,0.00041095,120]
[396221802,1764831788968,-500.0,0.00041095,120]
[396221803,1764831789029,-506.81445051,0.00041095,120]
[396221804,1764831789089,-638.7,0.00041095,120]
[396221805,1764831789148,-500.0,0.00041095,120]
[396221806,1764831789204,-160.56853209,0.00041095,120]
[396221807,1764831789260,-508.45925933,0.00041095,120]
[396221808,1764831789316,-639.76404781,0.00041095,120]
[396221809,1764831789372,-501.64876601,0.00041095,120]
[396221810,1764831789425,-500.0,0.00041095,120]
[396221811,1764831789478,-486.50030655,0.00041095,120]
[396221812,1764831789532,-500.0,0.00041095,120]
[396221813,1764831789589,-500.0,0.00041095,120]
[396221814,1764831789649,-500.0,0.00041095,120]
[396221815,1764831789710,-502.58858239,0.00041095,120]
[396221816,1764831789776,-500.0,0.00041095,120]
[396221817,1764831789838,-500.0,0.00041095,120]
[396221818,1764831789911,-500.0,0.00041095,120]
[396221819,1764831789973,-500.0,0.00041095,120]
[396221820,1764831790029,-500.0,0.00041095,120]
[396221821,1764831790082,-293.20804396,0.00041095,120]
[396221822,1764831790138,-500.0,0.00041095,120]
[396221823,1764831790194,-500.0,0.00041095,120]
[396221824,1764831790254,-500.0,0.00041095,120]
[396221825,1764831790311,-500.0,0.00041095,120]
[396221826,1764831790374,-538.13451489,0.00041095,120]
[396221827,1764831790437,-500.0,0.00041095,120]
[396221828,1764831790499,-500.0,0.00041095,120]
[396221829,1764831790562,-500.0,0.00041095,120]
[396221830,1764831790625,-500.0,0.00041095,120]
[396221831,1764831790685,-585.92352243,0.00041095,120]
[396221832,1764831790744,-500.0,0.00041095,120]
[396221833,1764831790805,-500.0,0.00041095,120]
[396221834,1764831790868,-500.0,0.00041095,120]
[396221835,1764831790928,-500.0,0.00041095,120]
[396221836,1764831790987,-500.0,0.00041095,120]
[396221837,1764831791052,-500.0,0.00041095,120]
[396221838,1764831791111,-299.60121028,0.00041095,120]
[396221839,1764831791368,-500.0,0.00041095,120]
[396221840,1764831791434,-260.5243992,0.00041095,120]
[396221841,1764831791497,-500.38277155,0.00041095,120]
[396221842,1764831791559,-500.0,0.00041095,120]
[396221843,1764831791620,-643.37014877,0.00041095,120]
[396221844,1764831791685,-500.0,0.00041095,120]
[396221845,1764831791748,-500.0,0.00041095,120]
[396221846,1764831791814,-500.0,0.00041095,120]
[396221847,1764831791880,-500.0,0.00041095,120]
[396221848,1764831791952,-500.0,0.00041095,120]
[396221849,1764831792018,-214.43679734,0.00041095,120]
[396221850,1764831792083,-500.0,0.00041095,120]
[396221851,1764831792147,-500.0,0.00041095,120]
[396221852,1764831792211,-500.0,0.00041095,120]
[396221853,1764831792273,-500.0,0.00041095,120]
[396221854,1764831792335,-165.60883648,0.00041095,120]
[396221855,1764831792402,-500.0,0.00041095,120]
[396221856,1764831792464,-500.0,0.00041095,120]
[396221857,1764831792527,-500.0,0.00041095,120]
[396221858,1764831792589,-500.0,0.00041095,120]
[396221859,1764831792653,-227.49593354,0.00041095,120]
[396221860,1764831792719,-354.69673504,0.00041095,120]
[396221861,1764831792786,-500.0,0.00041095,120]
[396221862,1764831792851,-504.96731865,0.00041095,120]
[396221863,1764831792915,-502.0069646,0.00041095,120]
[396221864,1764831792983,-500.0,0.00041095,120]
[396221865,1764831793050,-436.41758356,0.00041095,120]
[396221866,1764831793115,-500.34018958,0.00041095,120]
[396221867,1764831793188,-500.0,0.00041095,120]
[396221868,1764831793256,-500.0,0.00041095,120]
[396221869,1764831793321,-348.97843137,0.00041095,120]
[396221870,1764831793392,-500.0,0.00041095,10]
[396221871,1764831793459,-500.0,0.00041095,10]
[396221872,1764831793523,-503.77546766,0.00041095,10]
[396221873,1764831793583,-517.88090604,0.00041095,120]
[396221874,1764831793647,-500.0,0.00041095,120]
[396221875,1764831793710,-618.86265825,0.00041095,120]
[396221876,1764831793781,-500.0,0.00041095,120]
[396221877,1764831793842,-276.75116973,0.00041095,120]
[396221878,1764831793910,-500.0,0.00041095,120]
[396221879,1764831793976,-500.0,0.00041095,120]
[396221880,1764831794041,-500.0,0.00041095,120]
[396221881,1764831794106,-500.0,0.00041095,120]
[396221882,1764831794170,-500.0,0.00041095,120]
[396221883,1764831794233,-500.0,0.00041095,120]
[396221884,1764831794296,-500.0,0.00041095,120]
[396221885,1764831794362,-500.0,0.00041095,120]
[396221886,1764831794427,-500.0,0.00041095,120]
[396221887,1764831794494,-351.49731148,0.00041095,120]
[396221888,1764831794560,-404.81296098,0.00041095,120]
[396221889,1764831794622,-498.8883267,0.00041095,120]
[396221890,1764831794687,-500.92991711,0.00041095,120]
[396221891,1764831794755,-500.0,0.00041095,120]
[396221892,1764831794823,-314.1808346,0.00041095,120]
[396221893,1764831794892,-500.0,0.00041095,120]
[396221894,1764831794960,-500.0,0.00041095,120]
[396221895,1764831795031,-500.0,0.00041095,120]
[396221896,1764831795097,-500.0,0.00041095,120]
[396221897,1764831795163,-500.0,0.00041095,120]
[396221898,1764831795231,-500.0,0.00041095,120]
[396221899,1764831795296,-500.0,0.00041095,120]
[396221900,1764831795361,-500.0,0.00041095,120]
[396221901,1764831795424,-500.0,0.00041095,120]
[396221902,1764831795489,-500.0,0.00041095,120]
[396221903,1764831795553,-500.0,0.00041095,120]
[396221904,1764831795619,-500.0,0.00041095,120]
[396221905,1764831795684,-500.0,0.00041095,120]
[396221906,1764831795751,-500.0,0.00041095,120]
[396221907,1764831795819,-415.22868302,0.00041095,120]
[396221908,1764831795888,-500.0,0.00041095,120]
[396221909,1764831795958,-500.0,0.00041095,120]
[396221910,1764831796029,-500.0,0.00041095,120]
[396221911,1764831796102,-561.63515328,0.00041095,120]
[396221912,1764831796168,-501.37862576,0.00041095,120]
[396221913,1764831796230,-500.0,0.00041095,120]
[396221914,1764831796288,-501.53464395,0.00041095,120]
[396221915,1764831796348,-500.0,0.00041095,120]
[396221916,1764831796408,-334.76843406,0.00041095,120]
[396221917,1764831796466,-501.26727376,0.00041095,120]
[396221918,1764831796521,-501.68173244,0.00041095,120]
[396221919,1764831796576,-504.18397706,0.00041095,120]
[396221920,1764831796631,-500.0,0.00041095,90]
[396221921,1764831796686,-500.0,0.00041095,90]
[396221922,1764831796743,-500.0,0.00041095,90]
[396221923,1764831796796,-500.0,0.00041095,90]
[396221924,1764831796852,-500.0,0.00041095,90]
[396221925,1764831796909,-500.0,0.00041095,90]
[396221926,1764831796965,-502.69728046,0.00041095,120]
[396221927,1764831797020,-500.0,0.00041095,90]
[396221928,1764831797075,-500.0,0.00041095,90]
[396221929,1764831797132,-500.0,0.00041095,90]
[396221930,1764831797188,-500.0,0.00041095,90]
[396221931,1764831797244,-191.61335664,0.00041095,90]
[396221932,1764831797299,-500.45813502,0.00041095,120]
[396221933,1764831797356,-500.0,0.00041095,120]
[396221934,1764831797573,-500.0,0.00041095,120]
[396221935,1764831797632,-500.0,0.00041095,120]
[396221936,1764831797695,-500.0,0.00041095,120]
[396221937,1764831797756,-500.0,0.00041095,120]
[396221938,1764831797819,-496.17892511,0.00041095,120]
[396221939,1764831797879,-500.0,0.00041095,120]
[396221940,1764831797940,-500.0,0.00041095,120]
[396221941,1764831798000,-500.0,0.00041095,120]
[396221942,1764831798061,-550.22834668,0.00041095,120]
[396221943,1764831798125,-500.0,0.00041095,120]
[396221944,1764831798185,-500.0,0.00041095,120]
[396221945,1764831798241,-500.0,0.00041095,120]
[396221946,1764831798301,-500.0,0.00041095,120]
[396221947,1764831798363,-500.0,0.00041095,120]
[396221948,1764831798425,-500.0,0.00041095,120]
[396221949,1764831798486,-500.0,0.00041095,120]
[396221950,1764831798548,-500.0,0.00041095,120]
[396221951,1764831798606,-240.73897868,0.00041095,120]
[396221952,1764831798667,-500.0,0.00041095,120]
[396221953,1764831798732,-501.28505449,0.00041095,120]
[396221954,1764831798793,-500.0,0.00041095,120]
[396221955,1764831798864,-500.0,0.00041095,120]
[396221956,1764831798934,-500.0,0.00041095,120]
[396221957,1764831798997,-203.32171274,0.00041095,120]
[396221958,1764831799056,-500.0,0.00041095,120]
[396221959,1764831799117,-500.0,0.00041095,120]
[396221960,1764831799192,-500.0,0.00041095,120]
[396221961,1764831799267,-500.0,0.00041095,120]
[396221962,1764831799341,-183.78535744,0.00041095,120]
[396221963,1764831799415,-500.0,0.00041095,120]
[396221964,1764831799483,-628.36012938,0.00041095,120]
[396221965,1764831799541,-500.0,0.00041095,120]
[396221966,1764831799599,-500.0,0.00041095,120]
[396221967,1764831799658,-500.0,0.00041095,120]
[396221968,1764831799718,-234.88001611,0.00041095,120]
[396221969,1764831799781,-439.31234047,0.00041095,120]
[396221970,1764831799842,-500.0,0.00041095,120]
[396221971,1764831799905,-501.39624309,0.00041095,120]
[396221972,1764831799967,-479.14803295,0.00041095,120]
[396221973,1764831800025,-500.0,0.00041095,120]
[396221974,1764831800080,-500.0,0.00041095,120]
[396221975,1764831800138,-500.0,0.00041095,120]
[396221976,1764831800197,-500.0,0.00041095,120]
[396221977,1764831800255,-309.03415477,0.00041095,120]
[396221978,1764831800314,-500.0,0.00041095,120]
[396221979,1764831800376,-500.0,0.00041095,120]
[396221980,1764831800438,-500.0,0.00041095,120]
[396221981,1764831800501,-421.21674319,0.00041095,120]
[396221982,1764831800563,-500.0,0.00041095,120]
[396221983,1764831800625,-500.0,0.00041095,120]
[396221984,1764831800686,-500.0,0.00041095,120]
[396221985,1764831800745,-500.0,0.00041095,120]
[396221986,1764831800798,-570.45371769,0.00041095,120]
[396221987,1764831800856,-223.77361825,0.00041095,120]
[396221988,1764831800913,-565.71428782,0.00041095,120]
[396221989,1764831800968,-500.0,0.00041095,120]
[396221990,1764831801027,-634.3408922,0.00041095,120]
[396221991,1764831801084,-502.19885209,0.00041095,120]
[396221992,1764831801142,-537.47017838,0.00041095,120]
[396221993,1764831801201,-513.90846188,0.00041095,120]